bitfinex/quotes_SOLUSD_20251030
["timestamp","ask_amount","ask_price","bid_price","bid_amount"]
[1761810186014,0.72,196.05,196.01,3.13020466]
[1761810186424,0.72,196.05,196.02,3.13020466]
[1761810186799,0.72,196.05,196.03,3.13020466]
[1761810187010,0.72,196.07,196.04,3.13020466]
[1761810187215,0.72,196.06,196.04,3.13020466]
[1761810187418,0.72,196.07,196.04,3.13020466]
[1761810187726,4.51236066,196.08,196.04,3.13020466]
[1761810187909,0.72,196.08,196.04,3.13020466]
[1761810188103,28.82193506,196.09,196.04,9.78882769]
[1761810188310,0.72,196.07,196.04,9.78882769]
[1761810189302,0.1,196.15,196.04,27.64216662]
[1761810189619,0.1,196.15,196.12,12.91903235]
[1761810191126,0.1,196.15,196.12,18.01795137]
[1761810192428,0.1,196.15,196.12,20.0610088]
[1761810200209,0.1,196.16,196.15,9.78882769]
[1761810200509,0.1,196.16,196.15,13.42884626]
[1761810200909,1e-08,196.16,196.15,15.47148637]
[1761810201220,0.1,196.21,196.17,9.78882769]
[1761810201539,0.1,196.21,196.2,12.91903235]
[1761810203339,0.1,196.21,196.2,18.0158723]
[1761810203557,0.82,196.21,196.2,9.78882769]
[1761810204746,0.82,196.21,196.16,9.78882769]
[1761810205917,3.13020466,196.2,196.1,17.94411865]
[1761810206236,3.13020466,196.16,196.07,12.75009642]
[1761810206540,3.13020466,196.16,196.09,12.91903235]
[1761810206739,0.72,196.15,196.11,9.78882769]
[1761810207927,0.72,196.15,196.09,9.78882769]
[1761810207928,8.2287571,196.14,196.09,9.78882769]
[1761810208419,0.72,196.13,196.09,9.78882769]
[1761810209045,0.72,196.13,196.09,18.01869566]
[1761810209228,0.72,196.13,196.11,9.78882769]
[1761810210326,0.72,196.13,196.09,8.22986797]
[1761810211332,0.72,196.13,196.11,9.78882769]
[1761810211735,0.72,196.15,196.11,3.13020466]
[1761810211945,0.72,196.14,196.11,3.13020466]
[1761810212858,0.72,196.14,196.11,12.91903235]
[1761810213067,0.72,196.16,196.14,9.78882769]
[1761810213357,0.72,196.15,196.14,9.78882769]
[1761810214547,3.78185404,196.16,196.14,3.13020466]
[1761810214748,0.72,196.15,196.14,3.13020466]
[1761810215778,0.72,196.16,196.15,9.78882769]
[1761810215967,0.72,196.16,196.15,12.91903235]
[1761810216763,0.72,196.16,196.15,9.78882769]
[1761810216945,0.72,196.18,196.15,9.78882769]
[1761810217133,0.72,196.18,196.15,12.91903235]
[1761810217344,5.8175062,196.18,196.13,9.78882769]
[1761810217542,3.78668763,196.17,196.13,9.78882769]
[1761810217769,4.50668763,196.17,196.13,9.78882769]
[1761810218065,0.72,196.16,196.13,9.78882769]
[1761810221876,0.72,196.16,196.13,14.88745487]
[1761810222048,0.72,196.16,196.13,18.01765953]
[1761810222557,0.72,196.16,196.13,14.88745487]
[1761810226174,0.72,196.16,196.13,9.78882769]
[1761810226342,4.52009369,196.16,196.13,9.78882769]
[1761810226547,0.72,196.15,196.13,9.78882769]
[1761810227270,0.72,196.15,196.12,9.78882769]
[1761810227461,4.52009369,196.15,196.12,9.78882769]
[1761810227852,0.72,196.14,196.12,9.78882769]
[1761810229168,0.72,196.15,196.13,12.91903235]
[1761810229464,3.80009369,196.17,196.14,9.78882769]
[1761810229667,4.52009369,196.16,196.14,9.78882769]
[1761810229967,3.80009369,196.15,196.14,9.78882769]
[1761810230165,0.72,196.16,196.14,9.78882769]
[1761810231981,0.72,196.16,196.13,9.78882769]
[1761810232853,0.72,196.16,196.13,14.88743265]
[1761810233463,4.52009369,196.16,196.13,14.88743265]
[1761810233662,3.80009369,196.15,196.13,14.88743265]
[1761810233865,3.80009369,196.14,196.13,14.88743265]
[1761810234078,0.68,196.15,196.13,14.88743265]
[1761810234455,4.48009369,196.15,196.13,14.88743265]
[1761810234676,6.26959503,196.2,196.13,14.88743265]
[1761810234677,3.80009369,196.14,196.13,14.88743265]
[1761810234874,0.68,196.2,196.13,29.63356621]
[1761810235151,3.81565027,196.19,196.17,9.78882769]
[1761810235374,3.81565027,196.18,196.17,9.78882769]
[1761810236355,3.81565027,196.18,196.17,11.78831362]
[1761810236770,3.81512805,196.19,196.18,5.09735956]
[1761810236956,3.81512739,196.19,196.18,5.09735956]
[1761810238358,4.49512739,196.19,196.18,5.09735956]
[1761810239576,3.81512739,196.19,196.18,5.09735956]
[1761810240375,3.81512739,196.2,196.18,5.09735956]
[1761810240578,3.81512739,196.19,196.18,5.09735956]
[1761810241102,0.68,196.19,196.18,5.09735956]
[1761810241276,4.49512739,196.19,196.18,5.09735956]
[1761810241466,0.68,196.19,196.18,5.09735956]
[1761810241671,4.49512739,196.19,196.18,5.09735956]
[1761810242066,3.81512739,196.19,196.18,7.09684549]
[1761810242275,3.81512739,196.2,196.18,7.09684549]
[1761810242491,3.81512739,196.19,196.18,7.09684549]
[1761810242704,3.81512739,196.2,196.18,7.09684549]
[1761810242997,3.81512739,196.19,196.18,5.09735956]
[1761810243193,3.81370706,196.2,196.19,9.78882769]
[1761810244089,3.81370706,196.2,196.19,11.78831362]
[1761810244480,3.81370706,196.2,196.19,16.88541337]
[1761810246279,0.1,196.21,196.19,16.88541337]
[1761810246475,0.1,196.21,196.2,11.78831362]
[1761810246688,0.1,196.21,196.2,16.88515357]
[1761810247886,0.1,196.21,196.2,11.78831362]
[1761810249185,0.1,196.21,196.2,16.88515357]
[1761810249384,0.78,196.21,196.2,14.88566764]
[1761810249598,4.59231481,196.21,196.2,14.88566764]
[1761810249908,4.59231481,196.21,196.2,16.88515357]
[1761810250081,0.78,196.21,196.2,16.88515357]
[1761810250507,0.1,196.21,196.2,16.88515357]
[1761810250876,3.91231481,196.21,196.2,16.88515357]
[1761810251102,0.1,196.21,196.2,16.88515357]
[1761810255620,0.1,196.21,196.2,17.39483756]
[1761810256116,1e-08,196.21,196.2,19.39432349]
[1761810258610,1e-08,196.21,196.2,17.39483756]
[1761810260023,1e-08,196.21,196.2,16.88515357]
[1761810261343,1e-08,196.21,196.2,14.88566764]
[1761810261528,1e-08,196.21,196.2,16.88515357]
[1761810262542,1e-08,196.21,196.2,17.39483756]
[1761810262714,1e-08,196.21,196.2,16.88515357]
[1761810264936,1e-08,196.21,196.2,29.2046395]
[1761810266837,1e-08,196.21,196.2,27.20515357]
[1761810270130,0.70000001,196.21,196.2,27.20515357]
[1761810270433,1e-08,196.21,196.2,27.20515357]
[1761810273355,1e-08,196.21,196.2,29.2046395]
[1761810274251,1e-08,196.21,196.2,35.20309729]
[1761810275736,1e-08,196.21,196.2,35.71278128]
[1761810275926,1e-08,196.21,196.2,25.71535163]
[1761810276334,1e-08,196.21,196.2,37.75469148]
[1761810287051,0.1,196.24,196.23,32.38031362]
[1761810287662,0.1,196.24,196.23,34.42232806]
[1761810287966,0.8,196.24,196.23,34.93193413]
[1761810288150,0.1,196.24,196.23,34.93193413]
[1761810288740,0.1,196.24,196.23,40.02799487]
[1761810291374,1e-08,196.24,196.23,41.14755795]
[1761810293651,0.1,196.25,196.24,12.9078767]
[1761810293652,1e-08,196.25,196.24,12.9078767]
[1761810293874,1e-08,196.25,196.24,23.2078767]
[1761810294371,1e-08,196.25,196.24,25.24947425]
[1761810295178,1e-08,196.25,196.24,30.3452753]
[1761810301092,3.91109455,196.31,196.24,68.56378323]
[1761810301383,0.1,196.31,196.3,36.61892571]
[1761810301567,1e-08,196.31,196.3,52.01316921]
[1761810301759,1e-08,196.31,196.3,52.52259356]
[1761810302155,1e-08,196.31,196.3,46.28449554]
[1761810302359,1e-08,196.31,196.3,54.56346194]
[1761810302981,1e-08,196.31,196.21,3.11904901]
[1761810302982,0.50942436,196.31,196.21,3.11904901]
[1761810303185,3.11904901,196.29,196.2,3.11904901]
[1761810303363,4.31851973,196.28,196.2,5.16137624]
[1761810303569,3.80909538,196.27,196.22,9.78882769]
[1761810303765,3.80909538,196.27,196.21,3.11904901]
[1761810303966,7.43756874,196.26,196.2,2.04232723]
[1761810304193,7.43756874,196.26,196.19,5.09690516]
[1761810304194,3.80909538,196.25,196.19,5.09690516]
[1761810304372,3.80909538,196.25,196.19,8.21595417]
[1761810304569,3.80909538,196.25,196.2,9.78882769]
[1761810305088,3.80909538,196.24,196.2,9.78882769]
[1761810305281,3.80909538,196.23,196.2,9.78882769]
[1761810305590,3.11904901,196.25,196.2,14.88556218]
[1761810305772,3.11904901,196.27,196.22,12.9078767]
[1761810305974,3.80927687,196.26,196.22,12.9078767]
[1761810306173,20.592,196.3,196.24,12.9078767]
[1761810306174,24.22047336,196.3,196.24,12.9078767]
[1761810306372,3.80971325,196.29,196.24,12.9078767]
[1761810307583,3.80971325,196.29,196.24,18.0036472]
[1761810307979,6.92876226,196.29,196.24,18.0036472]
[1761810308289,3.80971325,196.28,196.24,18.0036472]
[1761810308488,3.80971325,196.28,196.24,14.88459819]
[1761810309201,3.80971325,196.28,196.25,3.11904901]
[1761810309404,20.59200001,196.31,196.27,9.78882769]
[1761810309687,3.81091398,196.3,196.27,9.78882769]
[1761810309897,3.81091398,196.29,196.27,9.78882769]
[1761810310192,20.59200001,196.31,196.27,18.00288161]
[1761810310483,3.81104611,196.3,196.27,18.00288161]
[1761810310687,3.81104611,196.3,196.27,14.8838326]
[1761810310873,3.81104611,196.3,196.26,3.11904901]
[1761810311073,3.81104611,196.29,196.26,3.11904901]
[1761810311275,3.81104611,196.28,196.25,18.00338242]
[1761810311476,3.81104611,196.27,196.25,18.00338242]
[1761810311681,28.80510772,196.31,196.25,18.00338242]
[1761810311864,3.81143856,196.3,196.25,18.00338242]
[1761810312066,3.81143856,196.29,196.25,18.00338242]
[1761810312368,28.80510772,196.31,196.25,18.00338242]
[1761810312369,3.81143856,196.28,196.25,18.00338242]
[1761810312571,3.81143856,196.27,196.25,18.00338242]
[1761810312795,28.80510772,196.31,196.25,18.00338242]
[1761810312995,3.8115971,196.3,196.26,5.09525459]
[1761810313162,3.8115971,196.29,196.27,3.11904901]
[1761810313367,3.8115971,196.28,196.26,8.2143036]
[1761810313576,3.8115971,196.27,196.26,18.00313129]
[1761810313806,3.8115971,196.3,196.26,18.00313129]
[1761810313967,3.8115971,196.29,196.26,18.00313129]
[1761810314289,3.8115971,196.28,196.26,18.00313129]
[1761810314503,3.8115971,196.27,196.26,18.00313129]
[1761810314865,20.59200001,196.31,196.26,18.00313129]
[1761810315068,3.81187122,196.3,196.26,18.00313129]
[1761810315266,3.81187122,196.3,196.29,12.9078767]
[1761810315464,1e-08,196.31,196.29,13.6278767]
[1761810315688,1e-08,196.31,196.3,13.6278767]
[1761810316105,1e-08,196.31,196.3,12.9078767]
[1761810316995,1e-08,196.31,196.3,9.78882769]
[1761810317403,1e-08,196.31,196.29,9.78882769]
[1761810317404,6.93026997,196.31,196.29,9.78882769]
[1761810317607,6.93026996,196.3,196.29,9.78882769]
[1761810317906,3.81122095,196.3,196.26,9.78882769]
[1761810318117,3.81122095,196.29,196.26,9.78882769]
[1761810318396,3.81122095,196.28,196.26,9.78882769]
[1761810318602,3.81122095,196.27,196.26,9.78882769]
[1761810318786,3.81122095,196.27,196.25,9.78882769]
[1761810318984,3.81122095,196.26,196.24,9.78882769]
[1761810319183,3.81122095,196.25,196.24,9.78882769]
[1761810319571,3.81122095,196.25,196.21,9.78882769]
[1761810320482,3.81122095,196.24,196.21,9.78882769]
[1761810320802,3.81122095,196.23,196.21,3.11904901]
[1761810321098,4.2701091,196.28,196.21,3.11904901]
[1761810321099,3.11904901,196.27,196.21,3.11904901]
[1761810321319,3.11904901,196.25,196.19,12.9078767]
[1761810321493,3.81182106,196.24,196.19,18.00496458]
[1761810322607,7.44029442,196.24,196.19,14.88591557]
[1761810322907,3.81182106,196.23,196.19,14.88591557]
[1761810323596,3.81182106,196.23,196.2,3.11904901]
[1761810323796,0.50942435,196.26,196.21,3.11904901]
[1761810324105,3.81005531,196.26,196.25,9.78882769]
[1761810324313,3.81005531,196.28,196.25,9.78882769]
[1761810324490,3.81005531,196.27,196.24,9.78882769]
[1761810324676,3.81005531,196.26,196.24,9.78882769]
[1761810324881,3.81005531,196.25,196.24,9.78882769]
[1761810325406,3.81005531,196.28,196.24,9.78882769]
[1761810325716,3.81005531,196.27,196.24,9.78882769]
[1761810325929,3.81005531,196.26,196.24,9.78882769]
[1761810326096,3.81005531,196.25,196.24,9.78882769]
[1761810326817,3.81005531,196.28,196.24,9.78882769]
[1761810327015,3.81005531,196.27,196.24,9.78882769]
[1761810327225,3.81005531,196.26,196.24,9.78882769]
[1761810327406,3.81005531,196.25,196.24,9.78882769]
[1761810327902,3.81005531,196.28,196.24,9.78882769]
[1761810328106,3.81005531,196.27,196.25,3.80904901]
[1761810328412,23.71104902,196.31,196.27,9.78882769]
[1761810328413,3.11904902,196.31,196.27,9.78882769]
[1761810328618,3.80835406,196.3,196.27,9.78882769]
[1761810329136,3.80835406,196.3,196.26,9.78882769]
[1761810330101,3.80835406,196.3,196.27,5.09502216]
[1761810330494,1e-08,196.31,196.27,8.21407117]
[1761810330495,3.80835406,196.29,196.27,8.21407117]
[1761810330693,3.80835406,196.28,196.27,8.21407117]
[1761810330905,3.80835407,196.31,196.27,8.21407117]
[1761810331601,3.80835406,196.3,196.27,5.09502216]
[1761810331915,3.80835406,196.29,196.27,8.21407117]
[1761810332121,3.80835406,196.28,196.27,8.21407117]
[1761810332334,3.80835406,196.28,196.27,5.09502216]
[1761810332531,3.80835407,196.31,196.27,5.09502216]
[1761810332711,3.80835406,196.3,196.27,5.09502216]
[1761810332912,3.80835406,196.29,196.27,5.09502216]
[1761810333113,3.80835406,196.28,196.27,5.09502216]
[1761810333305,3.80835407,196.31,196.27,5.09502216]
[1761810333536,3.80835406,196.3,196.27,5.09502216]
[1761810333733,3.80835406,196.29,196.27,5.09502216]
[1761810334032,3.80835406,196.28,196.27,5.09502216]
[1761810334242,3.11904901,196.29,196.25,9.78882769]
[1761810334417,3.11904901,196.27,196.22,14.88514814]
[1761810334732,3.80818202,196.26,196.22,14.88514814]
[1761810335435,3.80818202,196.26,196.22,15.57514814]
[1761810335949,3.62847336,196.29,196.25,9.78882769]
[1761810336131,3.80819226,196.28,196.25,9.78882769]
[1761810336432,3.80819226,196.27,196.25,14.88430689]
[1761810336629,3.80819226,196.26,196.25,14.88430689]
[1761810336941,3.80840974,196.28,196.26,9.78882769]
[1761810337230,3.80849444,196.27,196.23,9.78882769]
[1761810338314,3.80849444,196.27,196.25,9.78882769]
[1761810342528,3.80849444,196.26,196.25,9.78882769]
[1761810343210,3.80849444,196.28,196.25,9.78882769]
[1761810344256,3.80849444,196.27,196.25,9.78882769]
[1761810344436,3.80849444,196.26,196.25,9.78882769]
[1761810344629,4.31791879,196.28,196.25,9.78882769]
[1761810344835,3.80849444,196.27,196.25,9.78882769]
[1761810345037,3.80849444,196.27,196.23,9.78882769]
[1761810346420,3.80849444,196.26,196.23,9.78882769]
[1761810346622,3.80849444,196.25,196.23,15.57482715]
[1761810346928,3.80849444,196.24,196.23,15.57482715]
[1761810347127,3.80849444,196.24,196.23,14.88482715]
[1761810347769,3.80849444,196.27,196.23,14.88482715]
[1761810347957,7.4369678,196.26,196.22,9.78882769]
[1761810348158,3.80849444,196.25,196.22,9.78882769]
[1761810348372,3.80849444,196.24,196.22,9.78882769]
[1761810348566,3.80849444,196.23,196.22,9.78882769]
[1761810348762,3.80849444,196.25,196.22,9.78882769]
[1761810348967,3.11904901,196.23,196.14,0.69]
[1761810349154,24.90991879,196.22,196.16,9.78882769]
[1761810349475,3.80849444,196.21,196.2,3.11904901]
[1761810349643,24.40049444,196.23,196.2,3.11904901]
[1761810349842,3.80849444,196.22,196.2,3.80904901]
[1761810350054,3.80849444,196.21,196.2,3.11904901]
[1761810350253,3.80849444,196.24,196.2,3.11904901]
[1761810350541,3.80849444,196.23,196.2,8.21574751]
[1761810350755,3.80849444,196.22,196.2,8.90574751]
[1761810351058,3.80849444,196.21,196.2,8.90574751]
[1761810351376,3.80849444,196.21,196.2,7.78483421]
[1761810351740,3.80849444,196.24,196.2,7.78483421]
[1761810352059,3.80849444,196.23,196.2,7.78483421]
[1761810352250,3.80849444,196.22,196.2,7.78483421]
[1761810352452,3.80849444,196.21,196.2,7.78483421]
[1761810352768,3.80849444,196.21,196.1,0.5099439]
[1761810352939,4.31791879,196.2,196.16,1.99813571]
[1761810353145,3.80849444,196.19,196.18,9.78882769]
[1761810353759,3.80849444,196.22,196.18,9.78882769]
[1761810354066,3.80849444,196.21,196.18,9.78882769]
[1761810356764,8.90509855,196.21,196.18,9.78882769]
[1761810356960,3.80849444,196.2,196.18,9.78882769]
[1761810358043,3.80849444,196.2,196.17,0.72]
[1761810358044,3.80849444,196.2,196.17,9.78882769]
[1761810358552,3.80849444,196.2,196.17,10.50882769]
[1761810359166,3.80849444,196.2,196.17,15.60641167]
[1761810359369,3.80849444,196.19,196.17,15.60641167]
[1761810359567,0.50942435,196.21,196.17,15.60641167]
[1761810359755,4.31840425,196.21,196.17,15.60641167]
[1761810361869,3.8089799,196.21,196.18,2.71813571]
[1761810362055,0.50942435,196.23,196.18,2.71813571]
[1761810362241,4.31922771,196.23,196.18,2.71813571]
[1761810362668,6.31736342,196.23,196.18,0.72]
[1761810362967,3.80980336,196.22,196.18,0.72]
[1761810363168,5.80793907,196.22,196.18,0.72]
[1761810363354,3.80980336,196.21,196.19,9.78882769]
[1761810363671,3.80980336,196.2,196.19,9.78882769]
[1761810363872,3.80980336,196.22,196.19,16.88391677]
[1761810364072,3.81151332,196.21,196.2,9.78882769]
[1761810364273,3.81126771,196.23,196.21,9.78882769]
[1761810364464,3.81143282,196.23,196.21,9.78882769]
[1761810365160,3.81143282,196.23,196.19,5.09695337]
[1761810365161,3.81143282,196.23,196.22,12.5069634]
[1761810365366,0.50942435,196.28,196.24,5.09580105]
[1761810365571,3.81081299,196.27,196.24,5.09580105]
[1761810365764,3.81081299,196.27,196.24,5.81580105]
[1761810366366,3.81081299,196.26,196.24,5.81580105]
[1761810366543,3.81081299,196.25,196.24,15.60462874]
[1761810366749,3.81081299,196.27,196.24,9.78882769]
[1761810367073,3.81081299,196.26,196.24,9.78882769]
[1761810367253,3.81081299,196.25,196.24,9.78882769]
[1761810367756,3.81081299,196.27,196.24,10.50882769]
[1761810367954,3.81081299,196.26,196.24,15.60459162]
[1761810368149,3.81081299,196.25,196.24,10.50882769]
[1761810368557,3.81081299,196.27,196.24,10.50882769]
[1761810368762,3.81081299,196.26,196.24,10.50882769]
[1761810368968,3.81081299,196.25,196.24,10.50882769]
[1761810369170,3.81081299,196.27,196.24,14.88462874]
[1761810369553,3.81081299,196.27,196.25,0.72]
[1761810369882,3.81081299,196.26,196.25,17.60249569]
[1761810370046,4.32006491,196.28,196.26,0.72]
[1761810370249,3.81064056,196.28,196.26,0.72]
[1761810370787,1e-08,196.31,196.27,11.7869634]
[1761810370954,1e-08,196.31,196.3,32.3789634]
[1761810371490,1e-08,196.31,196.3,33.0989634]
[1761810371658,1e-08,196.31,196.3,38.1932069]
[1761810371977,1e-08,196.31,196.3,40.19134261]
[1761810372549,1e-08,196.31,196.3,50.61134261]
[1761810373678,1e-08,196.31,196.3,46.61507119]
[1761810373875,1e-08,196.31,196.3,50.61134261]
[1761810378579,1e-08,196.31,196.3,38.1932069]
[1761810379974,1e-08,196.31,196.3,40.19134261]
[1761810382478,1e-08,196.31,196.3,38.1932069]
[1761810382858,1e-08,196.31,196.3,40.19134261]
[1761810385081,1e-08,196.31,196.3,50.59134261]
[1761810386565,1e-08,196.31,196.3,40.19134261]
[1761810386883,1e-08,196.31,196.3,48.5732069]
[1761810387991,1e-08,196.31,196.3,46.57507119]
[1761810388192,1e-08,196.31,196.3,17.5612069]
[1761810388885,1e-08,196.31,196.3,16.8812069]
[1761810392282,1e-08,196.31,196.3,17.5612069]
[1761810393094,1e-08,196.31,196.3,16.8812069]
[1761810394209,1e-08,196.31,196.3,17.5612069]
[1761810396418,1e-08,196.31,196.3,16.8812069]
[1761810396793,1e-08,196.31,196.3,17.5612069]
[1761810398396,1e-08,196.31,196.3,15.56307119]
[1761810398593,1e-08,196.31,196.3,16.8812069]
[1761810399213,1e-08,196.31,196.3,17.5612069]
[1761810401427,1e-08,196.31,196.3,15.56307119]
[1761810401801,1e-08,196.31,196.3,17.5612069]
[1761810404109,1e-08,196.31,196.3,16.8812069]
[1761810404622,1e-08,196.31,196.3,14.88307119]
[1761810404824,1e-08,196.31,196.3,16.8812069]
[1761810405699,1e-08,196.31,196.3,25.55374974]
[1761810406224,1e-08,196.31,196.3,35.91374974]
[1761810406714,0.1,196.33,196.32,9.78882769]
[1761810406924,0.1,196.33,196.32,33.56833585]
[1761810407098,1e-08,196.33,196.32,33.56833585]
[1761810407308,0.1,196.36,196.35,30.38082769]
[1761810407518,0.1,196.36,196.35,32.88825802]
[1761810407811,0.1,196.36,196.35,33.56825802]
[1761810408020,0.1,196.36,196.35,38.66120428]
[1761810410037,0.1,196.39,196.37,5.09242756]
[1761810410342,0.1,196.39,196.38,3.18735253]
[1761810410544,0.1,196.44,196.38,5.18548824]
[1761810410845,0.1,196.44,196.39,4.67627142]
[1761810411406,1e-08,196.4,196.39,4.67627142]
[1761810411841,0.1,196.44,196.39,10.67067855]
[1761810412031,0.1,196.44,196.43,16.87783546]
[1761810412235,0.1,196.44,196.43,17.55783546]
[1761810413235,0.1,196.44,196.43,15.55969975]
[1761810413550,0.1,196.44,196.43,18.67294482]
[1761810415641,0.1,196.44,196.43,29.03294482]
[1761810415817,1e-08,196.44,196.43,29.03294482]
[1761810418251,1e-08,196.44,196.43,17.99294482]
[1761810418570,1e-08,196.44,196.43,18.69294482]
[1761810418749,1e-08,196.44,196.43,17.99294482]
[1761810420526,1e-08,196.44,196.43,9.78882769]
[1761810420728,0.71000001,196.44,196.41,9.78882769]
[1761810420924,0.71000001,196.44,196.41,12.90207276]
[1761810421130,0.71000001,196.44,196.41,3.11324507]
[1761810423077,1e-08,196.44,196.43,3.11324507]
[1761810423242,1e-08,196.44,196.43,12.90207276]
[1761810423652,1e-08,196.44,196.43,13.60207276]
[1761810424369,1e-08,196.44,196.43,19.20203202]
[1761810429346,1e-08,196.44,196.43,26.44878695]
[1761810429668,1e-08,196.44,196.43,29.05294482]
[1761810430642,1e-08,196.44,196.43,49.64494482]
[1761810431451,1e-08,196.44,196.43,39.28494482]
[1761810431750,1e-08,196.44,196.43,49.64494482]
[1761810432769,1e-08,196.44,196.43,38.58494482]
[1761810432973,1e-08,196.44,196.43,39.28494482]
[1761810434562,1e-08,196.44,196.43,29.49611713]
[1761810435149,1e-08,196.44,196.43,39.79403202]
[1761810435666,1e-08,196.44,196.43,39.28494482]
[1761810438156,1e-08,196.44,196.43,38.58494482]
[1761810439051,0.65000001,196.44,196.43,9.78882769]
[1761810441974,0.65000001,196.44,196.41,8.20462429]
[1761810442181,0.65000001,196.44,196.39,5.09180137]
[1761810442386,1.15942436,196.44,196.4,9.78882769]
[1761810442679,6.25008087,196.44,196.4,9.78882769]
[1761810442874,0.72,196.43,196.4,9.78882769]
[1761810443391,0.50942435,196.42,196.38,9.78882769]
[1761810443873,0.72,196.41,196.38,9.78882769]
[1761810444187,5.81151832,196.41,196.37,9.78882769]
[1761810444482,1.22942435,196.41,196.37,9.78882769]
[1761810444682,0.72,196.4,196.37,9.78882769]
[1761810444855,0.72,196.4,196.37,12.90207276]
[1761810445057,0.72,196.4,196.39,3.11324507]
[1761810445489,0.72,196.43,196.39,3.11324507]
[1761810445672,0.72,196.43,196.41,3.11324507]
[1761810447869,0.72,196.43,196.4,3.11324507]
[1761810448884,0.72,196.43,196.39,9.78882769]
[1761810449179,0.72,196.43,196.4,3.11324507]
[1761810449590,0.72,196.43,196.41,3.11324507]
[1761810450578,1e-08,196.44,196.42,3.11324507]
[1761810450886,0.72000001,196.44,196.42,3.11324507]
[1761810451282,0.72000001,196.44,196.41,8.20452754]
[1761810452387,3.62266942,196.43,196.38,12.90207276]
[1761810452772,0.72,196.42,196.39,3.11324507]
[1761810455184,0.72,196.42,196.38,17.99398563]
[1761810455593,0.50942435,196.43,196.4,9.78882769]
[1761810455889,0.72,196.43,196.4,12.90207276]
[1761810456064,1.22942435,196.43,196.38,8.20515794]
[1761810456567,0.72,196.42,196.38,8.86515794]
[1761810457695,0.72,196.42,196.4,9.78882769]
[1761810457891,0.72000001,196.44,196.4,12.90207276]
[1761810459091,0.72000001,196.44,196.4,17.99354934]
[1761810461795,5.81067233,196.44,196.4,9.78882769]
[1761810462096,0.50942435,196.43,196.4,9.78882769]
[1761810462397,1.22942435,196.43,196.39,9.78882769]
[1761810462798,0.72,196.42,196.39,9.78882769]
[1761810462982,0.72,196.42,196.39,12.90207276]
[1761810463179,6.32009668,196.44,196.39,17.99377247]
[1761810463397,0.72,196.43,196.39,17.99377247]
[1761810463586,0.72,196.43,196.39,18.65377247]
[1761810463788,0.72,196.43,196.4,3.11324507]
[1761810465801,0.72,196.43,196.39,17.99377247]
[1761810466097,3.62266942,196.42,196.37,9.78882769]
[1761810466576,0.72,196.41,196.37,9.78882769]
[1761810467504,0.50942435,196.4,196.35,11.98375209]
[1761810467683,0.50942435,196.4,196.36,9.78882769]
[1761810467881,0.72,196.39,196.36,9.78882769]
[1761810469892,0.50942435,196.38,196.35,6.89098999]
[1761810470187,3.11324507,196.36,196.35,6.89098999]
[1761810470608,9.43535632,196.36,196.35,6.89098999]
[1761810472993,6.32211125,196.36,196.35,6.89098999]
[1761810473311,0.50942435,196.36,196.35,6.89098999]
[1761810473904,29.96735632,196.36,196.35,6.89098999]
[1761810474596,21.76142435,196.36,196.35,6.89098999]
[1761810475193,21.10142435,196.36,196.35,6.89098999]
[1761810475509,0.50942435,196.36,196.35,6.89098999]
[1761810475710,2.50520435,196.37,196.35,6.89098999]
[1761810475902,3.16520435,196.37,196.35,6.89098999]
[1761810476415,1.16942435,196.37,196.35,6.89098999]
[1761810477215,6.26197581,196.37,196.35,6.89098999]
[1761810477398,2.65578,196.36,196.35,6.89098999]
[1761810478789,28.3404669,196.36,196.35,6.89098999]
[1761810480711,7.7484669,196.36,196.35,6.89098999]
[1761810480912,5.7526869,196.36,196.35,6.89098999]
[1761810481116,7.7484669,196.36,196.35,6.89098999]
[1761810481335,8.25789125,196.36,196.35,6.89098999]
[1761810481503,8.25789125,196.36,196.26,9.78882769]
[1761810481504,20.9896085,196.36,196.26,9.78882769]
[1761810481816,1.99578,196.3,196.26,9.78882769]
[1761810482004,1.99578,196.3,196.24,2.67578]
[1761810482005,0.50942435,196.29,196.25,9.78882769]
[1761810482414,0.50942435,196.29,196.25,10.46882769]
[1761810483129,8.25982668,196.29,196.23,2.67578]
[1761810483334,8.25982668,196.29,196.24,9.78882769]
[1761810483714,2.65578,196.28,196.23,5.77603196]
[1761810484026,0.50942435,196.27,196.23,5.77603196]
[1761810484918,6.26450314,196.27,196.22,7.09206923]
[1761810485132,0.50942435,196.27,196.23,0.68]
[1761810487305,0.50942435,196.27,196.23,5.77597632]
[1761810487730,0.50942435,196.27,196.24,0.68]
[1761810488317,0.50942435,196.27,196.23,7.09175632]
[1761810488527,0.50942435,196.27,196.23,7.77175632]
[1761810489032,0.50942435,196.27,196.24,0.68]